[Event "Early-Titled-Tuesday-Blitz-February-20-2024"]
[Site "Chess.com"]
[Date "2024.02.20"]
[Round "4"]
[White "manipun1"]
[Black "chess94cu"]
[Result "0-1"]
[WhiteElo "2411"]
[BlackElo "2659"]
[TimeControl "180+1"]
[EndTime "8:39:57 PST"]
[Termination "chess94cu won on time"]

1. e4 {[%clk 0:03:00.9]} 1... c5 {[%clk 0:02:59.2]} 2. Nf3 {[%clk 0:02:59.6]}
2... Nc6 {[%clk 0:02:59.8]} 3. Bb5 {[%clk 0:02:58.5]} 3... Nf6 {[%clk
0:02:58.6]} 4. Bxc6 {[%clk 0:02:57]} 4... dxc6 {[%clk 0:02:57.6]} 5. d3 {[%clk
0:02:57]} 5... Bg4 {[%clk 0:02:56]} 6. Nc3 {[%clk 0:02:52.6]} 6... Qc7 {[%clk
0:02:51.4]} 7. Be3 {[%clk 0:02:45]} 7... e5 {[%clk 0:02:50.2]} 8. h3 {[%clk
0:02:43.6]} 8... Bh5 {[%clk 0:02:45.3]} 9. g4 {[%clk 0:02:11.3]} 9... Bg6 {[%clk
0:02:44.3]} 10. Qd2 {[%clk 0:02:11.5]} 10... h5 {[%clk 0:02:39.4]} 11. g5 {[%clk
0:02:09.9]} 11... Nd7 {[%clk 0:02:38.8]} 12. Nh4 {[%clk 0:01:53.6]} 12... Bd6
{[%clk 0:02:38.6]} 13. Ne2 {[%clk 0:01:43.1]} 13... Nf8 {[%clk 0:02:36.4]} 14.
f4 {[%clk 0:01:38.3]} 14... exf4 {[%clk 0:02:37.3]} 15. Nxf4 {[%clk 0:01:35.8]}
15... O-O-O {[%clk 0:02:33]} 16. Nhxg6 {[%clk 0:01:31.4]} 16... Nxg6 {[%clk
0:02:31.1]} 17. Nxg6 {[%clk 0:01:31.5]} 17... fxg6 {[%clk 0:02:32]} 18. O-O-O
{[%clk 0:01:29.5]} 18... Be5 {[%clk 0:02:27.2]} 19. Rdf1 {[%clk 0:01:23.2]}
19... b6 {[%clk 0:01:49.6]} 20. Rf3 {[%clk 0:01:22.5]} 20... Rhf8 {[%clk
0:01:48.2]} 21. Rhf1 {[%clk 0:01:21.5]} 21... Rxf3 {[%clk 0:01:48.7]} 22. Rxf3
{[%clk 0:01:22.4]} 22... Qe7 {[%clk 0:01:45.7]} 23. Qf2 {[%clk 0:01:20.2]} 23...
Qe6 {[%clk 0:01:43.8]} 24. Kb1 {[%clk 0:01:03.1]} 24... Rd7 {[%clk 0:01:42.4]}
25. Rf8+ {[%clk 0:00:58.8]} 25... Kb7 {[%clk 0:01:41.6]} 26. Rf3 {[%clk
0:00:51.2]} 26... a5 {[%clk 0:01:34.2]} 27. a3 {[%clk 0:00:50.4]} 27... a4
{[%clk 0:01:33]} 28. Qf1 {[%clk 0:00:42.2]} 28... b5 {[%clk 0:01:14.7]} 29. Bxc5
{[%clk 0:00:29.1]} 29... Ka6 {[%clk 0:00:51.9]} 30. Rf8 {[%clk 0:00:26.7]} 30...
Kb7 {[%clk 0:00:48]} 31. Be3 {[%clk 0:00:22.2]} 31... Bd6 {[%clk 0:00:28.3]} 32.
Rf3 {[%clk 0:00:21.9]} 32... b4 {[%clk 0:00:27.6]} 33. axb4 {[%clk 0:00:20.4]}
33... Bxb4 {[%clk 0:00:28.5]} 34. c3 {[%clk 0:00:19.8]} 34... Be7 {[%clk
0:00:22.5]} 35. Bd4 {[%clk 0:00:19.5]} 35... c5 {[%clk 0:00:20.6]} 36. Bg1
{[%clk 0:00:16.3]} 36... Qb3 {[%clk 0:00:21]} 37. d4 {[%clk 0:00:09.2]} 37... a3
{[%clk 0:00:16.2]} 38. Qe2 {[%clk 0:00:07.8]} 38... Bxg5 {[%clk 0:00:11.8]} 39.
Be3 {[%clk 0:00:06.5]} 39... Bxe3 {[%clk 0:00:09.3]} 40. Rxe3 {[%clk 0:00:07.3]}
40... Rf7 {[%clk 0:00:07.2]} 41. Rd3 {[%clk 0:00:02.4]} 41... Rf1+ {[%clk
0:00:07.1]} 0-1

[Event "Early-Titled-Tuesday-Blitz-February-20-2024"]
[Site "Chess.com"]
[Date "2024.02.20"]
[Round "4"]
[White "Kotlyar_K"]
[Black "InitiatingASC"]
[Result "1/2-1/2"]
[WhiteElo "2594"]
[BlackElo "2388"]
[TimeControl "180+1"]
[EndTime "8:39:58 PST"]
[Termination "Game drawn by repetition"]

1. e4 {[%clk 0:03:00.9]} 1... c5 {[%clk 0:02:58.9]} 2. Nf3 {[%clk 0:03:01.2]}
2... Nc6 {[%clk 0:02:59]} 3. d4 {[%clk 0:03:01.4]} 3... cxd4 {[%clk 0:02:59.4]}
4. Nxd4 {[%clk 0:03:01.9]} 4... Nf6 {[%clk 0:03:00.1]} 5. Nc3 {[%clk 0:03:01.8]}
5... e5 {[%clk 0:03:00.3]} 6. Ndb5 {[%clk 0:03:01.2]} 6... h6 {[%clk 0:03:00.6]}
7. Nd6+ {[%clk 0:03:00.5]} 7... Bxd6 {[%clk 0:03:00.2]} 8. Qxd6 {[%clk
0:03:01.4]} 8... Qe7 {[%clk 0:03:01.1]} 9. Qd1 {[%clk 0:02:54.8]} 9... O-O
{[%clk 0:03:00]} 10. Bc4 {[%clk 0:02:45.3]} 10... d6 {[%clk 0:02:57.8]} 11. O-O
{[%clk 0:02:42.6]} 11... Be6 {[%clk 0:02:56.1]} 12. Bb3 {[%clk 0:02:20.6]} 12...
Nd4 {[%clk 0:02:34.5]} 13. Be3 {[%clk 0:02:14.7]} 13... Nxb3 {[%clk 0:02:32.1]}
14. axb3 {[%clk 0:02:15.6]} 14... a6 {[%clk 0:02:26.8]} 15. Qd3 {[%clk
0:01:52.9]} 15... Rad8 {[%clk 0:02:18.2]} 16. Bb6 {[%clk 0:01:52.2]} 16... Rd7
{[%clk 0:02:15.7]} 17. Rfe1 {[%clk 0:01:44]} 17... d5 {[%clk 0:02:05.8]} 18.
exd5 {[%clk 0:01:44.4]} 18... Nxd5 {[%clk 0:02:05.7]} 19. Nxd5 {[%clk
0:01:44.8]} 19... Bxd5 {[%clk 0:01:59.2]} 20. Qe3 {[%clk 0:01:45.3]} 20... Qf6
{[%clk 0:01:37.4]} 21. Rad1 {[%clk 0:01:32]} 21... Qg6 {[%clk 0:01:29]} 22. g3
{[%clk 0:01:30.9]} 22... Qh5 {[%clk 0:01:00.4]} 23. c4 {[%clk 0:01:25.7]} 23...
Bc6 {[%clk 0:00:49.6]} 24. Rxd7 {[%clk 0:01:26.2]} 24... Bxd7 {[%clk 0:00:49.7]}
25. Bc7 {[%clk 0:01:03.4]} 25... Re8 {[%clk 0:00:33.9]} 26. c5 {[%clk
0:00:58.3]} 26... Bc6 {[%clk 0:00:33.6]} 27. Bd6 {[%clk 0:00:58.9]} 27... Bf3
{[%clk 0:00:24.6]} 28. Qc3 {[%clk 0:00:52.2]} 28... e4 {[%clk 0:00:22.4]} 29.
Qc4 {[%clk 0:00:42.3]} 29... Re6 {[%clk 0:00:20.8]} 30. b4 {[%clk 0:00:27.7]}
30... Rg6 {[%clk 0:00:20.7]} 31. Rxe4 {[%clk 0:00:20.2]} 31... Qh3 {[%clk
0:00:18.9]} 32. Re8+ {[%clk 0:00:18.4]} 32... Kh7 {[%clk 0:00:19]} 33. Qf1
{[%clk 0:00:18.9]} 33... Qd7 {[%clk 0:00:18.9]} 34. Re3 {[%clk 0:00:18.4]} 34...
Bc6 {[%clk 0:00:18.6]} 35. f3 {[%clk 0:00:18.4]} 35... Re6 {[%clk 0:00:17.8]}
36. Qd3+ {[%clk 0:00:17.8]} 36... g6 {[%clk 0:00:17.5]} 37. Kf2 {[%clk
0:00:17.7]} 37... Rxe3 {[%clk 0:00:17]} 38. Qxe3 {[%clk 0:00:18.6]} 38... Qh3
{[%clk 0:00:17.3]} 39. Kg1 {[%clk 0:00:16.3]} 39... Qf5 {[%clk 0:00:16.5]} 40.
Kg2 {[%clk 0:00:14.8]} 40... Qc2+ {[%clk 0:00:15.7]} 41. Qf2 {[%clk 0:00:15.4]}
41... Qf5 {[%clk 0:00:16]} 42. h3 {[%clk 0:00:13.1]} 42... h5 {[%clk 0:00:16.2]}
43. Kh2 {[%clk 0:00:12.5]} 43... Bd7 {[%clk 0:00:15.8]} 44. g4 {[%clk
0:00:12.4]} 44... Qg5 {[%clk 0:00:15.5]} 45. f4 {[%clk 0:00:11.9]} 45... Qf6
{[%clk 0:00:15]} 46. g5 {[%clk 0:00:12]} 46... Qf5 {[%clk 0:00:15.2]} 47. Qg2
{[%clk 0:00:11.6]} 47... Qd3 {[%clk 0:00:14.9]} 48. Be5 {[%clk 0:00:11.5]} 48...
Bc6 {[%clk 0:00:15]} 49. Qf2 {[%clk 0:00:10.9]} 49... Qe4 {[%clk 0:00:15.5]} 50.
Kg3 {[%clk 0:00:10.1]} 50... Qd3+ {[%clk 0:00:14.6]} 51. Kh4 {[%clk 0:00:09.7]}
51... Qe4 {[%clk 0:00:13.1]} 52. Kg3 {[%clk 0:00:08.9]} 52... Qd3+ {[%clk
0:00:12.7]} 53. Kh2 {[%clk 0:00:09.1]} 53... Qe4 {[%clk 0:00:12.9]} 54. Kg3
{[%clk 0:00:07]} 1/2-1/2

[Event "Early-Titled-Tuesday-Blitz-February-20-2024"]
[Site "Chess.com"]
[Date "2024.02.20"]
[Round "4"]
[White "AnishOnYoutube"]
[Black "DreamsAreFake"]
[Result "1-0"]
[WhiteElo "3008"]
[BlackElo "2751"]
[TimeControl "180+1"]
[EndTime "8:39:59 PST"]
[Termination "AnishOnYoutube won by resignation"]

1. e4 {[%clk 0:03:00.9]} 1... c6 {[%clk 0:02:57.7]} 2. d4 {[%clk 0:03:00]} 2...
d5 {[%clk 0:02:58.3]} 3. e5 {[%clk 0:03:00.4]} 3... c5 {[%clk 0:02:58.5]} 4. Nf3
{[%clk 0:02:58.3]} 4... Bg4 {[%clk 0:02:58.8]} 5. dxc5 {[%clk 0:02:56]} 5... Nc6
{[%clk 0:02:58.3]} 6. c3 {[%clk 0:02:53]} 6... e6 {[%clk 0:02:58.2]} 7. Be3
{[%clk 0:02:53.3]} 7... Nge7 {[%clk 0:02:57.8]} 8. Bb5 {[%clk 0:02:52.9]} 8...
Qc7 {[%clk 0:02:46.1]} 9. Nbd2 {[%clk 0:02:51.1]} 9... Ng6 {[%clk 0:02:42.4]}
10. Qa4 {[%clk 0:02:47.6]} 10... Bxf3 {[%clk 0:02:41.3]} 11. Nxf3 {[%clk
0:02:47.6]} 11... a6 {[%clk 0:02:31.8]} 12. Bxc6+ {[%clk 0:02:45.7]} 12... bxc6
{[%clk 0:02:32.7]} 13. Bd4 {[%clk 0:02:33.5]} 13... Be7 {[%clk 0:02:29.7]} 14.
O-O {[%clk 0:02:33.7]} 14... O-O {[%clk 0:02:30.3]} 15. Rfe1 {[%clk 0:02:34]}
15... Rfb8 {[%clk 0:02:21]} 16. b4 {[%clk 0:02:22.4]} 16... a5 {[%clk
0:02:19.1]} 17. Qb3 {[%clk 0:02:21.6]} 17... axb4 {[%clk 0:01:52.4]} 18. cxb4
{[%clk 0:02:21.6]} 18... Qa7 {[%clk 0:01:53.2]} 19. Reb1 {[%clk 0:02:05.6]}
19... Qa4 {[%clk 0:01:51.9]} 20. a3 {[%clk 0:01:53.9]} 20... Nf8 {[%clk
0:01:45]} 21. Ne1 {[%clk 0:01:44.5]} 21... Nd7 {[%clk 0:01:42.8]} 22. Nd3 {[%clk
0:01:43.6]} 22... h6 {[%clk 0:01:23.6]} 23. Qxa4 {[%clk 0:01:40.8]} 23... Rxa4
{[%clk 0:01:24.5]} 24. Re1 {[%clk 0:01:33.8]} 24... Rba8 {[%clk 0:01:21.3]} 25.
Bb2 {[%clk 0:01:33.9]} 25... Nb8 {[%clk 0:01:17.6]} 26. Nc1 {[%clk 0:01:27.9]}
26... Kf8 {[%clk 0:01:12.5]} 27. Ne2 {[%clk 0:01:26.3]} 27... R4a7 {[%clk
0:01:02.8]} 28. Nd4 {[%clk 0:01:25.1]} 28... Ke8 {[%clk 0:00:57.1]} 29. f4
{[%clk 0:01:25.3]} 29... g6 {[%clk 0:00:50.5]} 30. g4 {[%clk 0:01:25.3]} 30...
Kd7 {[%clk 0:00:46.3]} 31. Kg2 {[%clk 0:01:20.4]} 31... Na6 {[%clk 0:00:46.1]}
32. Rad1 {[%clk 0:01:05.6]} 32... Rb7 {[%clk 0:00:43.3]} 33. Bc1 {[%clk
0:01:01.3]} 33... Nc7 {[%clk 0:00:40.2]} 34. Rd3 {[%clk 0:01:01.3]} 34... Rg8
{[%clk 0:00:33.2]} 35. Kf1 {[%clk 0:00:54.4]} 35... Nb5 {[%clk 0:00:25.2]} 36.
Nxb5 {[%clk 0:00:51.6]} 36... Rxb5 {[%clk 0:00:26.1]} 37. Rh3 {[%clk 0:00:51]}
37... Bf8 {[%clk 0:00:25.8]} 38. Ke2 {[%clk 0:00:50.3]} 38... Rb7 {[%clk
0:00:25.5]} 39. Kd1 {[%clk 0:00:48.1]} 39... Rb8 {[%clk 0:00:11.3]} 40. Kc2
{[%clk 0:00:48.5]} 40... Bg7 {[%clk 0:00:08.9]} 41. Kb3 {[%clk 0:00:46.9]} 41...
Bf8 {[%clk 0:00:09.5]} 42. Be3 {[%clk 0:00:46]} 42... Bg7 {[%clk 0:00:03.4]} 43.
Bd4 {[%clk 0:00:45.3]} 43... Bf8 {[%clk 0:00:02.7]} 44. Rf1 {[%clk 0:00:45.8]}
44... Bg7 {[%clk 0:00:01.9]} 45. a4 {[%clk 0:00:42.6]} 45... Bf8 {[%clk
0:00:02.4]} 46. Rb1 {[%clk 0:00:40.6]} 46... h5 {[%clk 0:00:01.9]} 47. gxh5
{[%clk 0:00:37.7]} 47... gxh5 {[%clk 0:00:02.8]} 48. Rxh5 {[%clk 0:00:37.7]}
48... Rg2 {[%clk 0:00:03.6]} 49. Rh7 {[%clk 0:00:31.6]} 49... Bg7 {[%clk
0:00:03.7]} 50. Rb2 {[%clk 0:00:29.1]} 50... Rg4 {[%clk 0:00:04.1]} 51. Rf2
{[%clk 0:00:27.2]} 51... Ke7 {[%clk 0:00:02.9]} 52. Rf3 {[%clk 0:00:24.1]} 52...
Kf8 {[%clk 0:00:03]} 53. Rg3 {[%clk 0:00:21.4]} 53... Rxf4 {[%clk 0:00:02.6]}
54. Rhxg7 {[%clk 0:00:20.7]} 1-0

[Event "Early-Titled-Tuesday-Blitz-February-20-2024"]
[Site "Chess.com"]
[Date "2024.02.20"]
[Round "4"]
[White "Szparu"]
[Black "YairParkhov"]
[Result "1-0"]
[WhiteElo "2781"]
[BlackElo "2556"]
[TimeControl "180+1"]
[EndTime "8:40:00 PST"]
[Termination "Szparu won by resignation"]

1. e4 {[%clk 0:03:00.9]} 1... c5 {[%clk 0:02:48.1]} 2. c3 {[%clk 0:02:59.6]}
2... e6 {[%clk 0:02:41.7]} 3. d4 {[%clk 0:02:59.4]} 3... d5 {[%clk 0:02:42.4]}
4. e5 {[%clk 0:02:56]} 4... Nc6 {[%clk 0:02:39.9]} 5. Nf3 {[%clk 0:02:56.5]}
5... Bd7 {[%clk 0:02:32.8]} 6. Be2 {[%clk 0:02:53.8]} 6... Nge7 {[%clk
0:02:28.4]} 7. O-O {[%clk 0:02:53.7]} 7... cxd4 {[%clk 0:02:28.7]} 8. cxd4
{[%clk 0:02:53.6]} 8... Ng6 {[%clk 0:02:29.1]} 9. Nc3 {[%clk 0:02:52]} 9... Be7
{[%clk 0:02:27.4]} 10. Be3 {[%clk 0:02:40.3]} 10... O-O {[%clk 0:02:26.9]} 11.
a3 {[%clk 0:02:32.9]} 11... a5 {[%clk 0:02:20.5]} 12. Bd3 {[%clk 0:02:31.2]}
12... h6 {[%clk 0:02:20]} 13. Qc2 {[%clk 0:02:27.7]} 13... Be8 {[%clk
0:02:19.5]} 14. g3 {[%clk 0:02:24.9]} 14... f5 {[%clk 0:02:19.6]} 15. exf6
{[%clk 0:02:23.9]} 15... Rxf6 {[%clk 0:02:19.6]} 16. Kg2 {[%clk 0:02:22]} 16...
Qd7 {[%clk 0:01:58.7]} 17. Na4 {[%clk 0:02:17.4]} 17... e5 {[%clk 0:01:51.8]}
18. Nxe5 {[%clk 0:02:08.7]} 18... Ncxe5 {[%clk 0:01:48.7]} 19. dxe5 {[%clk
0:02:08.9]} 19... Nh4+ {[%clk 0:01:20.3]} 20. Kh1 {[%clk 0:01:46.1]} 20... Qh3
{[%clk 0:00:51.6]} 21. Rg1 {[%clk 0:01:46]} 21... Nf3 {[%clk 0:00:50.5]} 22. Rg2
{[%clk 0:01:46.4]} 22... Nxe5 {[%clk 0:00:47.8]} 23. Nb6 {[%clk 0:01:43.7]}
23... d4 {[%clk 0:00:38.5]} 24. Bxd4 {[%clk 0:01:36.7]} 24... Bc6 {[%clk
0:00:39.1]} 25. Be4 {[%clk 0:01:35.6]} 25... Raf8 {[%clk 0:00:22.7]} 26. Bxc6
{[%clk 0:01:15.3]} 26... Rxc6 {[%clk 0:00:20.9]} 27. Qb3+ {[%clk 0:01:15.8]}
27... Nf7 {[%clk 0:00:18.3]} 28. Nd5 {[%clk 0:01:16.1]} 28... Bd8 {[%clk
0:00:17.7]} 29. Re1 {[%clk 0:01:15.4]} 29... Kh8 {[%clk 0:00:17]} 30. Qxb7
{[%clk 0:01:15]} 30... Rd6 {[%clk 0:00:16.5]} 31. Bc5 {[%clk 0:01:14]} 31... Qf5
{[%clk 0:00:14.5]} 32. Bxd6 {[%clk 0:01:07.7]} 32... Nxd6 {[%clk 0:00:15.4]} 33.
Qc6 {[%clk 0:00:59.9]} 33... Ne4 {[%clk 0:00:15.8]} 34. Nf4 {[%clk 0:01:00.1]}
34... Nf6 {[%clk 0:00:08.6]} 35. Qe6 {[%clk 0:01:00.6]} 35... Qc2 {[%clk
0:00:05.9]} 36. Qe2 {[%clk 0:01:01.2]} 36... Qf5 {[%clk 0:00:05.7]} 37. Qd3
{[%clk 0:01:01.8]} 37... Qxd3 {[%clk 0:00:05.3]} 38. Nxd3 {[%clk 0:01:02.7]}
38... Bb6 {[%clk 0:00:05.4]} 39. Ne5 {[%clk 0:01:02.4]} 39... Kh7 {[%clk
0:00:05.5]} 40. h3 {[%clk 0:01:00.6]} 40... Rc8 {[%clk 0:00:05.9]} 41. Re2
{[%clk 0:00:57.2]} 41... Bd4 {[%clk 0:00:06.3]} 42. Nf3 {[%clk 0:00:56.4]} 42...
Rc1+ {[%clk 0:00:06.5]} 43. Rg1 {[%clk 0:00:56.9]} 43... Rc4 {[%clk 0:00:05.8]}
44. Nxd4 {[%clk 0:00:56.5]} 44... Rxd4 {[%clk 0:00:06.7]} 45. Rge1 {[%clk
0:00:56.9]} 45... Rc4 {[%clk 0:00:06.8]} 46. Kg2 {[%clk 0:00:57.4]} 46... a4
{[%clk 0:00:07.2]} 47. Rd1 {[%clk 0:00:57.8]} 47... Rc5 {[%clk 0:00:07]} 48. Rd4
{[%clk 0:00:57.8]} 48... Ra5 {[%clk 0:00:07.4]} 49. Rc2 {[%clk 0:00:58.1]} 49...
Kg6 {[%clk 0:00:07.9]} 50. Rcc4 {[%clk 0:00:58.4]} 50... Rb5 {[%clk 0:00:08.6]}
51. Rb4 {[%clk 0:00:58.7]} 51... Re5 {[%clk 0:00:08.9]} 52. Kf1 {[%clk
0:00:58.3]} 52... h5 {[%clk 0:00:09.4]} 53. Rxa4 {[%clk 0:00:58.6]} 53... Rc5
{[%clk 0:00:08.3]} 54. Rac4 {[%clk 0:00:58.7]} 54... Re5 {[%clk 0:00:08.7]} 55.
b4 {[%clk 0:00:58.7]} 55... Kf5 {[%clk 0:00:09.1]} 56. Rc5 {[%clk 0:00:58.7]}
56... g5 {[%clk 0:00:08.7]} 57. Rxe5+ {[%clk 0:00:58.9]} 57... Kxe5 {[%clk
0:00:09.6]} 58. Rd1 {[%clk 0:00:59.1]} 58... g4 {[%clk 0:00:09.3]} 59. h4 {[%clk
0:00:59.1]} 59... Ke4 {[%clk 0:00:09.6]} 60. Ke2 {[%clk 0:00:58.5]} 60... Nd5
{[%clk 0:00:09.8]} 61. Rxd5 {[%clk 0:00:58.6]} 61... Kxd5 {[%clk 0:00:10.2]} 62.
Kd3 {[%clk 0:00:59.4]} 62... Ke5 {[%clk 0:00:10.6]} 63. a4 {[%clk 0:00:59.9]}
63... Kd5 {[%clk 0:00:11.5]} 64. a5 {[%clk 0:01:00.5]} 64... Kc6 {[%clk
0:00:12.4]} 65. Kc4 {[%clk 0:01:01]} 65... Kb7 {[%clk 0:00:12.7]} 66. Kc5 {[%clk
0:01:01.2]} 66... Ka7 {[%clk 0:00:13.4]} 67. b5 {[%clk 0:01:01.3]} 67... Kb7
{[%clk 0:00:14.3]} 68. b6 {[%clk 0:01:01.7]} 68... Ka6 {[%clk 0:00:14.7]} 69.
Kc6 {[%clk 0:01:01.8]} 69... Kxa5 {[%clk 0:00:15]} 70. b7 {[%clk 0:01:02.2]}
70... Kb4 {[%clk 0:00:15.9]} 71. b8=Q+ {[%clk 0:01:02.7]} 71... Kc4 {[%clk
0:00:16.8]} 72. Qd6 {[%clk 0:01:01.3]} 72... Kc3 {[%clk 0:00:16.7]} 73. Qd5
{[%clk 0:01:01.7]} 73... Kb4 {[%clk 0:00:17.1]} 74. Kb6 {[%clk 0:01:01.4]} 74...
Ka3 {[%clk 0:00:17.8]} 75. Qc4 {[%clk 0:01:01.2]} 75... Kb2 {[%clk 0:00:18.4]}
76. Qd3 {[%clk 0:01:01.4]} 76... Ka2 {[%clk 0:00:18.5]} 77. Qc3 {[%clk
0:01:00.9]} 77... Kb1 {[%clk 0:00:18.8]} 78. Qd2 {[%clk 0:01:01.2]} 78... Ka1
{[%clk 0:00:19]} 79. Kb5 {[%clk 0:01:01.9]} 79... Kb1 {[%clk 0:00:19.9]} 80. Kb4
{[%clk 0:01:02.6]} 1-0

[Event "Early-Titled-Tuesday-Blitz-February-20-2024"]
[Site "Chess.com"]
[Date "2024.02.20"]
[Round "4"]
[White "nj123456"]
[Black "sewlins"]
[Result "1-0"]
[WhiteElo "2450"]
[BlackElo "2136"]
[TimeControl "180+1"]
[EndTime "8:40:01 PST"]
[Termination "nj123456 won on time"]

1. e4 {[%clk 0:03:00.9]} 1... c5 {[%clk 0:02:58.1]} 2. c3 {[%clk 0:03:00.7]}
2... d5 {[%clk 0:02:56.9]} 3. exd5 {[%clk 0:03:01.6]} 3... Qxd5 {[%clk
0:02:57.7]} 4. d4 {[%clk 0:03:02.1]} 4... Nf6 {[%clk 0:02:56.6]} 5. Nf3 {[%clk
0:03:02]} 5... Nc6 {[%clk 0:02:43.1]} 6. Na3 {[%clk 0:03:00.6]} 6... Bg4 {[%clk
0:02:30]} 7. Be2 {[%clk 0:02:19.7]} 7... cxd4 {[%clk 0:02:17.6]} 8. Nb5 {[%clk
0:02:19.6]} 8... O-O-O {[%clk 0:02:07.8]} 9. Nbxd4 {[%clk 0:02:07.5]} 9... e5
{[%clk 0:02:00.7]} 10. Nxc6 {[%clk 0:01:54.1]} 10... Qxc6 {[%clk 0:02:01.6]} 11.
Qb3 {[%clk 0:01:43.5]} 11... Be6 {[%clk 0:02:00.5]} 12. Qc2 {[%clk 0:01:42.6]}
12... e4 {[%clk 0:01:56.1]} 13. Ng5 {[%clk 0:01:07.5]} 13... Bd5 {[%clk
0:01:53.7]} 14. O-O {[%clk 0:01:01.8]} 14... h6 {[%clk 0:01:52.9]} 15. Nh3
{[%clk 0:01:01.7]} 15... g5 {[%clk 0:01:50.3]} 16. Be3 {[%clk 0:00:59.6]} 16...
Ng4 {[%clk 0:01:44.5]} 17. Bxg4+ {[%clk 0:00:56.5]} 17... Kb8 {[%clk 0:01:44.4]}
18. b3 {[%clk 0:00:51.9]} 18... Bd6 {[%clk 0:01:39.3]} 19. c4 {[%clk 0:00:48.3]}
19... Qc7 {[%clk 0:01:36.4]} 20. g3 {[%clk 0:00:43.6]} 20... h5 {[%clk
0:01:34.9]} 21. Bf5 {[%clk 0:00:40.7]} 21... f6 {[%clk 0:01:19.6]} 22. Bxe4
{[%clk 0:00:39.2]} 22... Be6 {[%clk 0:01:18.9]} 23. Bf5 {[%clk 0:00:39.2]} 23...
Bf7 {[%clk 0:01:17.4]} 24. Kg2 {[%clk 0:00:34.4]} 24... h4 {[%clk 0:01:17]} 25.
Rad1 {[%clk 0:00:29.4]} 25... hxg3 {[%clk 0:01:12.8]} 26. hxg3 {[%clk
0:00:30.3]} 26... Rde8 {[%clk 0:01:09.3]} 27. Be4 {[%clk 0:00:26.3]} 27... Bh5
{[%clk 0:00:37.4]} 28. Rde1 {[%clk 0:00:22.5]} 28... Bg4 {[%clk 0:00:32.8]} 29.
Ng1 {[%clk 0:00:20.8]} 29... Rh6 {[%clk 0:00:28.4]} 30. f3 {[%clk 0:00:18]}
30... Reh8 {[%clk 0:00:27.1]} 31. fxg4 {[%clk 0:00:14.5]} 31... Rh2+ {[%clk
0:00:27]} 32. Kf3 {[%clk 0:00:15.4]} 32... Rxc2 {[%clk 0:00:26.1]} 33. Bxc2
{[%clk 0:00:16.3]} 33... Bxg3 {[%clk 0:00:26]} 34. Rd1 {[%clk 0:00:16.1]} 34...
Bd6 {[%clk 0:00:24.4]} 35. Bf5 {[%clk 0:00:15.5]} 35... Re8 {[%clk 0:00:20.3]}
36. Rd3 {[%clk 0:00:14.4]} 36... Qc6+ {[%clk 0:00:20.1]} 37. Kf2 {[%clk
0:00:12.9]} 37... Bc5 {[%clk 0:00:16.8]} 38. Re1 {[%clk 0:00:10.8]} 38... Rh8
{[%clk 0:00:11.2]} 39. Nf3 {[%clk 0:00:10.8]} 39... Qc7 {[%clk 0:00:07.9]} 40.
Bxc5 {[%clk 0:00:10.6]} 40... Qxc5+ {[%clk 0:00:08.2]} 41. Kg2 {[%clk
0:00:11.2]} 41... a6 {[%clk 0:00:07.7]} 42. Rde3 {[%clk 0:00:11.4]} 42... Ka7
{[%clk 0:00:07.6]} 43. Re8 {[%clk 0:00:11.1]} 43... Rxe8 {[%clk 0:00:03.5]} 44.
Rxe8 {[%clk 0:00:12]} 44... Qa3 {[%clk 0:00:03.9]} 45. Re2 {[%clk 0:00:11.9]}
45... Qa5 {[%clk 0:00:03]} 46. Be4 {[%clk 0:00:12]} 46... Qb4 {[%clk 0:00:03]}
47. Bd5 {[%clk 0:00:12.4]} 47... Qc5 {[%clk 0:00:02.5]} 48. Nd2 {[%clk
0:00:11.5]} 48... Qa3 {[%clk 0:00:01.5]} 49. Nf3 {[%clk 0:00:11]} 1-0

[Event "Early-Titled-Tuesday-Blitz-February-20-2024"]
[Site "Chess.com"]
[Date "2024.02.20"]
[Round "4"]
[White "Flameboard08"]
[Black "ARMQUEEN"]
[Result "0-1"]
[WhiteElo "2707"]
[BlackElo "2502"]
[TimeControl "180+1"]
[EndTime "8:40:04 PST"]
[Termination "ARMQUEEN won by checkmate"]

1. f4 {[%clk 0:03:00.9]} 1... d6 {[%clk 0:02:54.6]} 2. Nf3 {[%clk 0:02:59.6]}
2... c5 {[%clk 0:02:54.3]} 3. d3 {[%clk 0:02:59.1]} 3... f6 {[%clk 0:02:54.6]}
4. e4 {[%clk 0:02:58.2]} 4... e5 {[%clk 0:02:54.7]} 5. g3 {[%clk 0:02:58.8]}
5... Nc6 {[%clk 0:02:53]} 6. Bg2 {[%clk 0:02:59.3]} 6... Be7 {[%clk 0:02:51.1]}
7. O-O {[%clk 0:02:59.8]} 7... Nh6 {[%clk 0:02:51.1]} 8. Nc3 {[%clk 0:02:59.2]}
8... Nf7 {[%clk 0:02:50.7]} 9. Nd5 {[%clk 0:02:59.3]} 9... O-O {[%clk 0:02:50]}
10. c4 {[%clk 0:02:58.8]} 10... a6 {[%clk 0:02:49.6]} 11. f5 {[%clk 0:02:57.9]}
11... b5 {[%clk 0:02:47.6]} 12. b3 {[%clk 0:02:57.7]} 12... Rb8 {[%clk 0:02:40]}
13. h4 {[%clk 0:02:53]} 13... a5 {[%clk 0:02:39.6]} 14. a4 {[%clk 0:02:46.1]}
14... bxc4 {[%clk 0:02:37.1]} 15. bxc4 {[%clk 0:02:40.9]} 15... Nb4 {[%clk
0:02:37]} 16. g4 {[%clk 0:02:34.1]} 16... Nxd5 {[%clk 0:02:33.9]} 17. exd5
{[%clk 0:02:31.5]} 17... Qb6 {[%clk 0:02:22.4]} 18. Nd2 {[%clk 0:02:30.3]} 18...
e4 {[%clk 0:02:17.2]} 19. Rb1 {[%clk 0:02:19.4]} 19... Qc7 {[%clk 0:02:13.2]}
20. Rxb8 {[%clk 0:02:17.7]} 20... Qxb8 {[%clk 0:02:13.5]} 21. Nxe4 {[%clk
0:02:17.6]} 21... Ne5 {[%clk 0:02:13.6]} 22. Bf4 {[%clk 0:02:14.4]} 22... Bd7
{[%clk 0:02:10.9]} 23. Bxe5 {[%clk 0:02:14.4]} 23... fxe5 {[%clk 0:02:09.9]} 24.
h5 {[%clk 0:01:57.7]} 24... h6 {[%clk 0:02:02.6]} 25. f6 {[%clk 0:01:37.2]}
25... gxf6 {[%clk 0:01:59.5]} 26. Ng3 {[%clk 0:01:36.5]} 26... Qb2 {[%clk
0:01:52.4]} 27. Be4 {[%clk 0:01:20.5]} 27... Qd4+ {[%clk 0:01:40]} 28. Kg2
{[%clk 0:01:19.4]} 28... Rb8 {[%clk 0:01:39.3]} 29. Rf2 {[%clk 0:01:19.5]} 29...
Qe3 {[%clk 0:01:33]} 30. Bf5 {[%clk 0:01:15.4]} 30... Be8 {[%clk 0:01:24.3]} 31.
Be6+ {[%clk 0:01:10.4]} 31... Kf8 {[%clk 0:01:24.3]} 32. Nf5 {[%clk 0:01:07.4]}
32... Qg5 {[%clk 0:01:23.8]} 33. Kh3 {[%clk 0:01:06.3]} 33... Rb4 {[%clk
0:01:15.1]} 34. Ng3 {[%clk 0:00:47.6]} 34... Bxa4 {[%clk 0:01:10]} 35. Qf1
{[%clk 0:00:44.9]} 35... Be8 {[%clk 0:01:05.3]} 36. Ne4 {[%clk 0:00:44.1]} 36...
Qg7 {[%clk 0:01:00.5]} 37. Rf3 {[%clk 0:00:12.4]} 37... a4 {[%clk 0:00:58.3]}
38. Qc1 {[%clk 0:00:10.7]} 38... Rb3 {[%clk 0:00:51.8]} 39. Qa1 {[%clk
0:00:02.5]} 39... a3 {[%clk 0:00:34]} 40. Bf5 {[%clk 0:00:02.4]} 40... Ba4
{[%clk 0:00:27.1]} 41. Bg6 {[%clk 0:00:01.6]} 41... Bd8 {[%clk 0:00:18.7]} 42.
Qf1 {[%clk 0:00:02]} 42... Ke7 {[%clk 0:00:10.5]} 43. Nxf6 {[%clk 0:00:02.5]}
43... Rb2 {[%clk 0:00:08.8]} 44. Ne4 {[%clk 0:00:02.4]} 44... Be8 {[%clk
0:00:06.1]} 45. Bxe8 {[%clk 0:00:02.8]} 45... Kxe8 {[%clk 0:00:06.1]} 46. Nxd6+
{[%clk 0:00:03.4]} 46... Kd7 {[%clk 0:00:04.9]} 47. Ne4 {[%clk 0:00:04.1]} 47...
Kc8 {[%clk 0:00:04.4]} 48. Qa1 {[%clk 0:00:02.6]} 48... Qe7 {[%clk 0:00:04.1]}
49. Qxa3 {[%clk 0:00:02]} 49... Qh4# {[%clk 0:00:03.9]} 0-1